bitfinex/quotes_SOLUSD_20251212
["timestamp","ask_amount","ask_price","bid_price","bid_amount"]
[1765558052560,13.0470912,132.24,132.2,7.56388879]
[1765558052959,13.0470912,132.24,132.19,20.01149389]
[1765558052960,20.60922599,132.24,132.19,20.01149389]
[1765558053179,8.80994492,132.22,132.18,15.84540894]
[1765558053578,9.51994492,132.22,132.18,15.84540894]
[1765558053985,0.71,132.22,132.19,7.5647584]
[1765558054195,8.80994492,132.23,132.19,8.2547584]
[1765558054389,9.51994492,132.23,132.19,7.5647584]
[1765558055793,13.0470912,132.24,132.2,0.69]
[1765558055999,12.44682654,132.22,132.18,15.8452319]
[1765558056186,12.44682654,132.22,132.16,7.56617144]
[1765558056187,12.44682654,132.2,132.16,7.56617144]
[1765558056383,9.51994492,132.21,132.16,7.56617144]
[1765558056586,12.44682654,132.19,132.14,8.97]
[1765558056917,21.25677146,132.2,132.15,0.69]
[1765558057090,25.49391774,132.21,132.16,7.56658595]
[1765558057284,26.20391774,132.21,132.16,7.56658595]
[1765558057603,13.0470912,132.21,132.17,13.13682654]
[1765558058405,75.0,132.26,132.19,12.44682654]
[1765558058589,75.0,132.26,132.18,13.13682654]
[1765558058590,21.25677146,132.24,132.18,13.13682654]
[1765558058787,12.44682654,132.23,132.18,0.69]
[1765558058983,28.8201095,132.22,132.16,39.61987738]
[1765558059179,16.37328296,132.22,132.17,0.69]
[1765558059380,17.08328296,132.22,132.17,0.69]
[1765558059578,13.15682654,132.21,132.16,26.48305084]
[1765558059787,0.71,132.21,132.16,38.92987738]
[1765558060106,8.27374231,132.21,132.16,27.17305084]
[1765558060400,8.27374231,132.21,132.17,0.69]
[1765558061222,104.3,132.2,132.17,8.25590812]
[1765558062122,104.3,132.2,132.17,20.70273466]
[1765558062306,104.3,132.2,132.18,21.41682654]
[1765558062626,0.71,132.26,132.19,12.44682654]
[1765558062824,0.71,132.26,132.21,12.44682654]
[1765558063025,13.7570912,132.26,132.21,12.44682654]
[1765558063199,21.31801838,132.26,132.22,7.56315232]
[1765558063399,21.96677146,132.25,132.19,12.44682654]
[1765558063598,9.51994492,132.25,132.19,12.44682654]
[1765558063794,0.71,132.24,132.21,20.01027965]
[1765558064111,0.71,132.26,132.22,20.72682654]
[1765558064441,0.71,132.26,132.23,12.44682654]
[1765558065210,0.71,132.26,132.23,20.00927577]
[1765558065406,0.71,132.26,132.23,7.56244923]
[1765558066420,9.51994492,132.28,132.24,12.44682654]
[1765558066597,0.71,132.28,132.25,12.44682654]
[1765558066798,0.71,132.28,132.26,12.44682654]
[1765558067031,0.71,132.28,132.26,20.72682654]
[1765558067329,0.71,132.28,132.26,8.28]
[1765558068120,102.53,132.3,132.26,20.72682654]
[1765558068121,0.71,132.3,132.26,20.72682654]
[1765558068330,179.0143071,132.32,132.28,12.44682654]
[1765558068331,9.71994492,132.32,132.28,12.44682654]
[1765558068538,0.2,132.32,132.3,12.44682654]
[1765558068832,0.2,132.32,132.31,12.44682654]
[1765558070237,0.2,132.34,132.33,20.88827975]
[1765558070419,0.2,132.34,132.33,20.00369195]
[1765558070629,0.2,132.34,132.32,7.55732432]
[1765558070937,0.2,132.34,132.33,15.83686541]
[1765558071233,0.2,132.34,132.33,28.28369195]
[1765558071746,0.2,132.34,132.33,16.12118855]
[1765558072044,0.2,132.34,132.33,28.56801509]
[1765558072244,1e-08,132.34,132.33,37.37796001]
[1765558072416,0.65,132.43,132.37,0.28432314]
[1765558072616,0.65,132.42,132.39,0.28432314]
[1765558072822,0.65,132.42,132.38,8.28]
[1765558073015,13.6970912,132.42,132.38,8.28]
[1765558073213,8.80994492,132.41,132.38,8.28]
[1765558073427,8.80994492,132.38,132.35,8.28]
[1765558073611,8.80994492,132.39,132.35,8.28]
[1765558073810,12.44682654,132.38,132.35,8.28]
[1765558074034,0.65,132.37,132.35,8.28]
[1765558074240,0.65,132.37,132.33,7.55678322]
[1765558074241,13.09682654,132.37,132.33,7.55678322]
[1765558074543,20.6514895,132.37,132.32,15.83739712]
[1765558074722,12.44682654,132.34,132.27,18.90061446]
[1765558074927,12.44682654,132.33,132.28,28.26648295]
[1765558075140,13.09682654,132.33,132.28,15.81965641]
[1765558075434,0.65,132.32,132.28,8.26]
[1765558075634,0.65,132.32,132.28,20.70682654]
[1765558075856,0.65,132.32,132.28,8.26]
[1765558076062,0.65,132.32,132.29,7.55901056]
[1765558076250,0.65,132.32,132.28,15.81968261]
[1765558076975,21.25677146,132.31,132.28,8.26]
[1765558077143,21.25677146,132.31,132.26,7.5604429]
[1765558077144,12.44682654,132.3,132.25,7.56128655]
[1765558077346,13.09682654,132.3,132.26,7.56066152]
[1765558077561,0.65,132.29,132.26,7.56066152]
[1765558078244,8.80994492,132.28,132.25,8.26]
[1765558078445,12.44682654,132.27,132.25,8.26]
[1765558078662,13.09682654,132.27,132.25,8.26]
[1765558078961,0.65,132.27,132.25,7.56141256]
[1765558079177,0.65,132.26,132.25,7.56141256]
[1765558079343,21.85703612,132.25,132.18,8.26]
[1765558079542,12.44682654,132.23,132.18,8.26]
[1765558079867,21.85703612,132.25,132.19,7.56486874]
[1765558079868,0.65,132.24,132.19,7.56486874]
[1765558080052,13.09682654,132.24,132.19,7.56486874]
[1765558080365,13.6970912,132.27,132.22,7.56315232]
[1765558080563,12.44682654,132.25,132.21,7.56356131]
[1765558080740,0.65,132.26,132.23,12.44682654]
[1765558080942,13.0470912,132.28,132.24,12.4320753]
[1765558081165,0.65,132.28,132.23,8.26]
[1765558081479,0.65,132.31,132.27,12.4320753]
[1765558081642,0.65,132.31,132.28,12.4320753]
[1765558081837,0.65,132.31,132.27,20.6920753]
[1765558082069,8.80994492,132.3,132.27,8.26]
[1765558082240,0.72,132.29,132.27,8.26]
[1765558082559,13.0470912,132.27,132.23,8.26]
[1765558082763,25.4791665,132.27,132.23,8.26]
[1765558082960,0.72,132.26,132.23,8.26]
[1765558083566,8.80994492,132.23,132.14,38.55630993]
[1765558083770,12.4320753,132.19,132.13,12.4320753]
[1765558084076,12.4320753,132.18,132.13,12.4320753]
[1765558084285,21.24202022,132.19,132.14,7.56773119]
[1765558084454,12.4320753,132.17,132.13,7.56829947]
[1765558084654,13.1520753,132.16,132.12,8.26]
[1765558084875,21.24202022,132.15,132.12,8.26]
[1765558085066,21.96202022,132.15,132.12,8.26]
[1765558085273,12.4320753,132.13,132.12,8.26]
[1765558085484,13.1520753,132.14,132.12,8.26]
[1765558085778,21.96202022,132.13,132.09,7.77053534]
[1765558085985,21.96202022,132.13,132.1,7.56993245]
[1765558086186,0.72,132.13,132.09,31.55760937]
[1765558086384,8.80994492,132.14,132.09,31.55760937]
[1765558086596,0.72,132.12,132.09,0.2]
[1765558086960,34.28911142,132.14,132.09,20.2025529]
[1765558086961,21.85703612,132.14,132.09,20.2025529]
[1765558087161,8.80994492,132.16,132.11,12.4320753]
[1765558087389,21.96202022,132.16,132.11,12.4320753]
[1765558087561,0.72,132.15,132.11,12.4320753]
[1765558087961,0.72,132.15,132.09,26.69696711]
[1765558088162,0.72,132.15,132.1,12.4320753]
[1765558088559,0.72,132.15,132.11,12.4320753]
[1765558088961,0.72,132.15,132.13,7.56830394]
[1765558089866,0.72,132.15,132.12,8.28]
[1765558090066,75.0,132.15,132.09,8.48]
[1765558090268,0.72,132.19,132.14,12.4320753]
[1765558090470,0.72,132.19,132.17,12.4320753]
[1765558090774,0.72,132.19,132.14,9.0]
[1765558090979,0.72,132.19,132.17,12.4320753]
[1765558091198,0.72,132.19,132.17,19.99773099]
[1765558091417,0.72,132.22,132.18,12.4320753]
[1765558091581,0.72,132.25,132.21,12.4320753]
[1765558091776,8.80994492,132.24,132.18,9.0]
[1765558092100,8.80994492,132.24,132.2,12.4320753]
[1765558092406,0.72,132.25,132.21,12.4320753]
[1765558092586,9.52994492,132.24,132.19,12.4320753]
[1765558092906,0.72,132.25,132.2,12.4320753]
[1765558093079,9.52994492,132.24,132.2,7.56429652]
[1765558093397,9.52994492,132.24,132.2,19.99637182]
[1765558093698,13.0470912,132.26,132.23,12.4320753]
[1765558093903,0.72,132.28,132.24,12.4320753]
[1765558094109,0.72,132.28,132.23,12.4320753]
[1765558094285,0.72,132.28,132.24,12.4320753]
[1765558094496,13.1520753,132.3,132.24,12.4320753]
[1765558094673,13.0470912,132.29,132.24,12.4320753]
[1765558094872,8.80994492,132.29,132.23,0.72]
[1765558095076,13.1520753,132.3,132.24,26.46702963]
[1765558095385,0.72,132.3,132.26,12.4320753]
[1765558095899,0.72,132.3,132.24,26.46702963]
[1765558096076,0.72,132.3,132.26,12.4320753]
[1765558096486,0.72,132.3,132.25,12.4320753]
[1765558096888,0.72,132.3,132.24,26.46702963]
[1765558097090,7.5597218,132.28,132.23,7.56258035]
[1765558097297,0.72,132.3,132.26,12.4320753]
[1765558097705,8.80994492,132.32,132.28,12.4320753]
[1765558097879,8.80994492,132.32,132.28,7.64443481]
[1765558098079,8.80994492,132.34,132.29,7.64443481]
[1765558098279,83.27584765,132.35,132.3,7.64443481]
[1765558098711,0.72,132.34,132.31,7.64443481]
[1765558098911,13.7670912,132.35,132.31,7.64443481]
[1765558099211,15.92096546,132.34,132.29,7.55915035]
[1765558099700,0.72,132.33,132.29,15.20358516]
[1765558100078,0.72,132.33,132.29,7.55915035]
[1765558100494,15.92132307,132.33,132.28,23.48401266]
[1765558100682,16.45437973,132.32,132.28,8.28]
[1765558100886,17.13437973,132.32,132.28,8.28]
[1765558101090,0.68,132.31,132.28,8.28]
[1765558101287,0.68,132.31,132.28,15.83958037]
[1765558101489,0.68,132.31,132.28,23.48401518]
[1765558101978,0.68,132.33,132.29,7.64443481]
[1765558102287,171.2832534,132.35,132.3,7.64443481]
[1765558102484,163.7270912,132.35,132.3,7.55832598]
[1765558102708,0.68,132.34,132.3,15.20276079]
[1765558103007,8.80994492,132.33,132.29,7.55912298]
[1765558103182,91.45437973,132.33,132.28,24.15397244]
[1765558103507,0.68,132.32,132.28,16.50953763]
[1765558103687,0.68,132.32,132.28,24.15397244]
[1765558104082,0.68,132.32,132.29,7.55909984]
[1765558104280,0.68,132.32,132.29,15.20353465]
[1765558104480,0.68,132.32,132.29,7.55909984]
[1765558104687,8.23745046,132.32,132.28,15.83969684]
[1765558105183,0.68,132.31,132.28,15.83969684]
[1765558105515,0.68,132.31,132.28,8.28]
[1765558105882,0.68,132.31,132.28,15.83959515]
[1765558107293,0.68,132.31,132.28,23.48402996]
[1765558107601,13.0470912,132.33,132.29,7.64443481]
[1765558107786,13.7270912,132.33,132.29,7.64443481]
[1765558107990,13.0470912,132.33,132.29,7.64443481]
[1765558108187,0.68,132.32,132.28,15.83959515]
[1765558108388,13.0470912,132.33,132.29,7.64443481]
[1765558108599,13.7170912,132.33,132.3,7.55857898]
[1765558108805,8.80994492,132.34,132.3,15.20301379]
[1765558109012,9.47994492,132.34,132.3,15.20301379]
[1765558109310,8.80994492,132.34,132.3,7.55857898]
[1765558109499,0.67,132.33,132.3,7.55857898]
[1765558109698,170.60299404,132.35,132.3,7.55857898]
[1765558109898,0.67,132.35,132.31,7.64443481]
[1765558110101,99.67913767,132.37,132.32,8.26]
[1765558110297,0.67,132.36,132.32,8.26]
[1765558110701,15.86855323,132.38,132.32,8.97]
[1765558111004,8.22411842,132.38,132.32,8.97]
[1765558111400,15.86855323,132.38,132.33,7.64443481]
[1765558111715,9.47994492,132.37,132.33,7.55631051]
[1765558111896,17.12437973,132.37,132.33,7.55631051]
[1765558112096,0.67,132.36,132.33,7.55631051]
[1765558112292,0.67,132.36,132.32,8.26]
[1765558112293,20.69152601,132.34,132.32,8.26]
[1765558112516,8.80994492,132.34,132.32,8.26]
[1765558112697,0.67,132.34,132.32,8.26]
[1765558113198,0.67,132.34,132.32,15.81735726]
[1765558113398,0.67,132.34,132.32,8.26]
[1765558113790,7.64443481,132.36,132.32,8.26]
[1765558113791,8.22521139,132.36,132.32,15.81733312]
[1765558113987,0.67,132.35,132.32,15.81733312]
[1765558114419,0.67,132.35,132.19,53.93309972]
[1765558114420,8.80994492,132.33,132.26,13.0470912]
[1765558114719,7.64443481,132.31,132.28,7.55965504]
[1765558114921,7.64443481,132.31,132.26,8.26]
[1765558115098,75.0,132.32,132.28,7.55959931]
[1765558115415,0.67,132.31,132.28,7.55959931]
[1765558115619,8.31443481,132.31,132.26,8.26]
[1765558115791,17.03844323,132.31,132.26,15.82072885]
[1765558115987,0.67,132.3,132.26,15.82072885]
[1765558116191,0.67,132.3,132.26,8.26]
[1765558116192,16.45437973,132.29,132.26,8.26]
[1765558116920,0.67,132.28,132.26,8.26]
[1765558117711,83.22878057,132.3,132.26,15.82056489]
[1765558117915,0.67,132.29,132.26,15.82056489]
[1765558118119,8.80994492,132.26,132.21,18.90898127]
[1765558118298,8.80994492,132.26,132.22,7.56276928]
[1765558118499,9.47994492,132.26,132.22,7.56276928]
[1765558119109,13.0470912,132.27,132.24,7.56163005]
[1765558119310,9.47994492,132.28,132.24,7.56163005]
[1765558119501,0.67,132.28,132.24,15.20606486]
[1765558119700,0.67,132.28,132.24,15.21052105]
[1765558120018,17.03865568,132.3,132.25,15.908891]
[1765558120523,9.47994492,132.3,132.25,16.618891]
[1765558120720,0.67,132.29,132.25,16.618891]
[1765558120922,0.67,132.29,132.25,8.26]
[1765558121124,16.45883592,132.28,132.25,8.26]
[1765558121306,24.01904696,132.28,132.25,8.26]
[1765558121506,88.7170912,132.29,132.25,15.82143099]
[1765558121927,13.7170912,132.29,132.25,23.47032199]
[1765558123027,0.67,132.29,132.25,23.47032199]
[1765558123604,0.67,132.29,132.25,15.82143099]
[1765558124000,15.87823344,132.29,132.25,15.82143099]
[1765558124306,0.67,132.29,132.25,15.82143099]
[1765558124905,27.31482045,132.33,132.27,7.648891]
[1765558124906,8.22724998,132.33,132.27,7.648891]
[1765558125104,15.87614098,132.33,132.28,7.648891]
[1765558125306,15.87614098,132.33,132.26,0.71]
[1765558125307,88.0470912,132.34,132.29,16.618891]
[1765558125607,15.8750698,132.35,132.29,16.618891]
[1765558125608,0.67,132.35,132.31,7.648891]
[1765558126229,0.67,132.35,132.3,27.16502644]
[1765558126230,15.87503925,132.35,132.3,7.55857898]
[1765558126731,0.67,132.34,132.3,15.20746998]
[1765558126930,92.03355381,132.39,132.33,7.648891]
[1765558127230,7.648891,132.38,132.33,8.26]
[1765558127530,7.55458185,132.37,132.33,8.26]
[1765558127733,8.22458185,132.37,132.33,8.26]
[1765558127933,0.67,132.36,132.33,8.26]
[1765558128707,0.67,132.36,132.33,15.81686482]
[1765558129234,15.87419477,132.36,132.33,8.26]
[1765558129548,17.03524869,132.36,132.31,7.648891]
[1765558130035,0.67,132.35,132.32,7.5570798]
[1765558130332,13.0470912,132.38,132.33,15.20555977]
[1765558130530,13.0470912,132.38,132.35,7.648891]
[1765558130739,8.2533503,132.4,132.36,7.55515261]
[1765558130936,28.9493325,132.4,132.36,7.55515261]
[1765558131140,0.7,132.39,132.36,7.55515261]
[1765558131513,0.7,132.39,132.35,7.55556003]
[1765558131738,28.2493325,132.4,132.36,7.648891]
[1765558131739,13.0470912,132.4,132.36,7.648891]
[1765558132037,8.348891,132.42,132.36,8.308891]
[1765558132239,21.3959822,132.42,132.36,8.308891]
[1765558132610,7.648891,132.4,132.35,7.55556003]
[1765558133037,0.7,132.39,132.35,15.20445103]
[1765558133239,7.648891,132.37,132.34,15.81594214]
[1765558133444,20.6959822,132.38,132.34,15.81619092]
[1765558133616,0.7,132.37,132.34,15.81619092]
[1765558133816,8.348891,132.37,132.34,8.26]
[1765558134237,20.6959822,132.38,132.34,8.26]
[1765558134539,0.7,132.36,132.34,8.26]
[1765558135118,15.90443588,132.36,132.34,8.26]
[1765558135612,8.348891,132.35,132.3,15.81852273]
[1765558135864,75.0,132.37,132.31,0.66]
[1765558136160,21.85703612,132.38,132.34,15.2049706]
[1765558136161,13.0470912,132.38,132.34,15.2049706]
[1765558136362,0.7,132.39,132.35,15.908891]
[1765558136735,8.25415064,132.38,132.35,8.26]
[1765558136955,0.7,132.38,132.35,8.26]
[1765558138453,8.348891,132.38,132.35,8.26]
[1765558138649,7.648891,132.37,132.35,8.26]
[1765558138953,7.55515261,132.36,132.35,8.26]
[1765558139257,118.60187006,132.36,132.31,15.81794592]
[1765558139438,28.25074011,132.37,132.31,16.568891]
[1765558139774,20.60184911,132.37,132.33,7.55640496]
[1765558140148,21.30184911,132.37,132.32,7.648891]
[1765558140361,0.7,132.36,132.32,7.55705665]
[1765558140765,8.25522045,132.36,132.32,7.55705665]
[1765558140959,8.25522045,132.36,132.31,24.12667004]
[1765558141159,7.55522045,132.36,132.31,15.81777904]
[1765558141374,13.0470912,132.37,132.33,7.648891]
[1765558141674,20.60187079,132.37,132.32,8.308891]
[1765558141874,21.30187079,132.37,132.32,0.66]
[1765558142180,21.30187079,132.37,132.32,8.308891]
[1765558142677,0.7,132.36,132.32,7.648891]
[1765558143246,99.71414203,132.36,132.31,15.81777904]
[1765558143756,0.7,132.35,132.31,15.81777904]
[1765558144363,8.25588011,132.35,132.31,15.81777904]
[1765558144669,8.25588011,132.35,132.31,8.26]
[1765558144670,21.3959822,132.34,132.31,8.26]
[1765558145054,0.7,132.33,132.31,8.26]
[1765558145554,190.5770912,132.34,132.3,7.55820585]
[1765558145555,0.7,132.32,132.3,7.55820585]
[1765558145776,8.348891,132.32,132.27,7.55993348]
[1765558145981,102.53,132.31,132.27,15.81993348]
[1765558146291,103.23,132.31,132.28,7.55956956]
[1765558146487,8.348891,132.3,132.27,8.26]
[1765558146690,88.0470912,132.32,132.28,7.648891]
[1765558147005,0.7,132.36,132.31,7.648891]
[1765558147289,75.7,132.39,132.34,7.648891]
[1765558147658,0.7,132.38,132.34,7.648891]
[1765558149779,27.1390782,132.38,132.32,15.81729558]
[1765558149957,27.1390782,132.38,132.34,7.648891]
[1765558150155,8.25476542,132.37,132.34,7.648891]
[1765558150475,21.85703612,132.36,132.32,8.26]
[1765558150689,82.648891,132.35,132.32,8.26]
[1765558150889,7.648891,132.33,132.28,15.8197218]
[1765558151093,170.6959822,132.33,132.28,23.4686128]
[1765558151272,9.50994492,132.34,132.21,18.90889686]
[1765558151273,13.0470912,132.26,132.21,18.90889686]
[1765558151474,8.80994492,132.25,132.21,8.26]
[1765558151674,0.7,132.24,132.21,8.26]
[1765558151878,8.348891,132.24,132.21,8.26]
[1765558152091,0.7,132.24,132.21,8.26]
[1765558152284,170.6082319,132.26,132.21,8.26]
[1765558152603,7.648891,132.24,132.21,8.26]
[1765558152764,82.648891,132.22,132.15,18.91777593]
[1765558153106,7.648891,132.2,132.16,7.5662067]
[1765558153265,75.7,132.21,132.16,7.56628139]
[1765558153464,8.348891,132.2,132.16,7.56628139]
[1765558153789,0.7,132.21,132.16,8.22628139]
[1765558153991,0.7,132.2,132.16,7.56628139]
[1765558154179,0.7,132.2,132.16,15.21517239]
[1765558154590,0.7,132.2,132.17,7.648891]
[1765558154891,0.7,132.2,132.16,15.21517239]
[1765558155069,0.7,132.2,132.16,7.56628139]
[1765558155274,7.5637454,132.21,132.16,7.56628139]
[1765558155590,0.7,132.21,132.16,15.21517239]
[1765558155792,104.50592712,132.19,132.13,7.648891]
[1765558156091,8.348891,132.2,132.15,7.648891]
[1765558156291,8.348891,132.2,132.08,37.85569785]
[1765558156292,0.7,132.2,132.17,7.648891]
[1765558156501,28.25930769,132.22,132.18,7.648891]
[1765558156502,13.0470912,132.22,132.18,7.648891]
[1765558156794,13.7470912,132.22,132.18,7.648891]
[1765558157089,0.7,132.21,132.18,7.648891]
[1765558157295,95.6959822,132.22,132.16,8.26]
[1765558157590,82.648891,132.21,132.16,15.908891]
[1765558157773,0.66,132.2,132.16,15.908891]
[1765558158096,88.10772389,132.2,132.16,8.26]
[1765558158411,0.66,132.2,132.16,20.70772389]
[1765558158590,0.66,132.2,132.16,28.27424236]
[1765558158784,13.0470912,132.22,132.18,12.44772389]
[1765558158988,75.0,132.23,132.16,34.74298336]
[1765558158989,0.66,132.23,132.2,12.44772389]
[1765558159195,0.66,132.25,132.19,13.0470912]
[1765558159508,13.10772389,132.24,132.19,12.44772389]
[1765558159708,0.66,132.23,132.19,12.44772389]
[1765558160303,8.22260983,132.23,132.19,12.44772389]
[1765558160515,8.22260983,132.23,132.19,20.01238533]
[1765558160714,0.67,132.22,132.19,20.01238533]
[1765558161010,7.56260983,132.23,132.19,20.01238533]
[1765558161011,0.67,132.23,132.2,12.44772389]
[1765558161313,0.67,132.23,132.21,12.44772389]
[1765558161499,13.0470912,132.25,132.22,12.44772389]
[1765558161810,0.67,132.24,132.19,38.9245572]
[1765558162130,0.67,132.24,132.2,12.44772389]
[1765558162407,0.67,132.24,132.21,7.56372437]
[1765558162610,0.67,132.24,132.2,7.56417222]
[1765558162808,8.23222144,132.24,132.2,7.56417222]
[1765558163009,102.53,132.23,132.2,7.56417222]
[1765558163209,103.2,132.23,132.2,7.56417222]
[1765558163413,102.53,132.23,132.2,7.56417222]
[1765558163721,103.2,132.23,132.2,20.01189611]
[1765558164016,103.2,132.23,132.2,7.56417222]
[1765558164312,103.2,132.23,132.14,37.83835512]
[1765558164313,7.56429652,132.2,132.13,0.67]
[1765558164614,0.67,132.19,132.15,12.44772389]
[1765558164817,0.67,132.19,132.14,15.84773119]
[1765558165013,0.67,132.19,132.15,12.44772389]
[1765558165219,0.67,132.19,132.14,34.76705917]
[1765558165402,13.11772389,132.19,132.14,28.29545508]
[1765558165800,0.67,132.18,132.14,28.29545508]
[1765558166022,0.67,132.18,132.15,12.44772389]
[1765558166415,0.67,132.18,132.09,0.2]
[1765558166416,13.0470912,132.16,132.09,0.2]
[1765558166615,33.73028575,132.18,132.14,7.56755441]
[1765558166815,0.67,132.17,132.14,7.56755441]
[1765558167027,0.67,132.17,132.15,7.56712734]
[1765558169688,102.53,132.18,132.15,7.56712734]
[1765558169813,102.53,132.18,132.15,20.01485123]
[1765558170142,103.2,132.18,132.15,7.56712734]
[1765558170310,102.53,132.18,132.15,20.01485123]
[1765558170514,102.53,132.18,132.11,0.28432314]
[1765558170515,115.64772389,132.17,132.11,12.44772389]
[1765558170829,102.53,132.16,132.12,7.56847418]
[1765558171026,103.2,132.16,132.13,7.56828539]
[1765558171232,0.67,132.15,132.13,7.56828539]
[1765558171458,0.67,132.15,132.12,7.5688373]
[1765558171763,0.67,132.15,132.11,31.37050291]
[1765558171922,102.53,132.16,132.15,7.56715853]
[1765558172743,123.21446806,132.16,132.11,7.56898281]
[1765558172948,13.11772389,132.15,132.11,7.56898281]
[1765558173323,88.11772389,132.14,132.1,7.56980963]
[1765558173622,0.67,132.14,132.1,31.37198992]
[1765558173832,0.67,132.16,132.13,7.56830394]
[1765558174037,0.67,132.18,132.14,7.56760246]
[1765558174230,0.67,132.17,132.14,7.56760246]
[1765558174427,0.67,132.19,132.14,7.56760246]
[1765558174632,0.67,132.18,132.14,7.56760246]
[1765558174826,0.67,132.2,132.15,12.44772389]
[1765558175127,0.67,132.2,132.16,12.44772389]
[1765558175327,0.67,132.2,132.17,8.28]
[1765558175950,13.11772389,132.2,132.13,13.0470912]
[1765558176149,12.44772389,132.19,132.13,33.77481509]
[1765558176321,0.67,132.18,132.14,7.56754845]
[1765558176522,0.67,132.18,132.15,7.56707948]
[1765558177531,87.44772389,132.2,132.17,7.56601346]
[1765558177730,75.0,132.2,132.15,12.44772389]
[1765558177932,0.67,132.19,132.14,26.48592353]
[1765558178132,8.23493735,132.19,132.14,20.01545508]
[1765558178644,0.67,132.18,132.14,20.01545508]
[1765558178960,75.67,132.23,132.15,13.7170912]
[1765558179249,75.67,132.23,132.15,13.0470912]
[1765558179452,12.44772389,132.21,132.15,25.49481509]
[1765558179748,75.0,132.21,132.15,12.44772389]
[1765558179953,0.67,132.2,132.15,12.44772389]
[1765558180133,0.67,132.2,132.16,7.56658595]
[1765558180452,0.67,132.2,132.16,26.48305084]
[1765558181448,0.67,132.2,132.13,22.13925277]
[1765558181449,0.67,132.2,132.14,26.62922074]
[1765558181748,0.67,132.2,132.15,12.44772389]
[1765558182649,0.67,132.2,132.13,7.56818335]
[1765558182650,25.49481509,132.18,132.13,7.56818335]
[1765558183030,0.67,132.17,132.13,7.56818335]
[1765558183228,0.67,132.17,132.13,31.36758032]
[1765558183457,0.67,132.17,132.14,12.44772389]
[1765558183639,0.67,132.17,132.13,31.36758032]
[1765558184133,0.67,132.17,132.13,26.48816037]
[1765558184324,0.67,132.17,132.13,20.01602783]
[1765558185057,0.67,132.17,132.13,7.56830394]
[1765558185261,25.49481509,132.16,132.12,7.56884783]
[1765558185445,115.5770912,132.16,132.11,7.56908404]
[1765558185648,0.67,132.15,132.11,7.56908404]
[1765558185971,12.44772389,132.13,132.09,0.2]
[1765558186148,20.01597381,132.14,132.09,7.77023518]
[1765558186348,12.44772389,132.1,132.09,0.2]
[1765558186547,103.2,132.13,132.09,0.2]
[1765558186748,103.2,132.13,132.09,7.77055225]
[1765558186955,103.2,132.13,132.09,20.21827614]
[1765558187153,103.2,132.13,132.09,39.14476565]
[1765558187354,102.53,132.13,132.09,39.14476565]
[1765558187556,0.67,132.12,132.09,39.14476565]
[1765558187944,0.67,132.12,132.09,20.21827614]
[1765558188137,0.67,132.12,132.09,7.77055225]
[1765558189371,0.67,132.12,132.09,20.21827614]
[1765558189668,102.53,132.13,132.11,12.44772389]
[1765558190046,0.67,132.15,132.11,12.44772389]
[1765558190359,0.67,132.15,132.09,7.77055225]
[1765558190843,0.67,132.15,132.1,12.44772389]
[1765558191039,12.44772389,132.13,132.09,7.77023608]
[1765558191238,12.44772389,132.1,132.09,0.2]
[1765558191643,12.44772389,132.1,132.04,8.28]
[1765558191644,83.80994492,132.09,132.04,8.28]
[1765558191868,12.44772389,132.07,132.04,8.28]
[1765558192370,0.72,132.06,132.04,15.85341051]
[1765558192565,0.72,132.09,132.04,15.85341051]
[1765558192866,0.72,132.09,132.04,28.3011344]
[1765558193167,20.73838954,132.09,132.04,47.23479086]
[1765558193469,0.72,132.08,132.04,47.23479086]
[1765558195055,0.72,132.08,132.04,34.78706697]
[1765558195251,105.14660103,132.11,132.06,7.57231561]
[1765558195459,33.78438,132.11,132.06,20.0200395]
[1765558195667,0.72,132.1,132.06,20.03697821]
[1765558196446,13.1846626,132.1,132.05,20.03752688]
[1765558196646,102.53,132.09,132.05,20.03752688]